fUST/lending_fUST_20241112
["ID","MTS","AMOUNT","RATE_DAILY","PERIOD"]
[342050557,1731394479323,500.0,0.00020844,2]
[342050558,1731394479383,500.0,0.00020844,2]
[342050559,1731394479413,500.0,0.00020844,2]
[342050560,1731394479598,500.0,0.00020844,2]
[342050561,1731394479629,500.0,0.00020844,2]
[342050562,1731394479663,500.0,0.00020844,2]
[342050563,1731394479698,500.0,0.00020844,2]
[342050564,1731394479731,500.0,0.00020844,2]
[342050565,1731394479761,500.0,0.00020844,2]
[342050566,1731394479801,500.0,0.00020844,2]
[342050567,1731394479927,500.0,0.00020844,2]
[342050568,1731394479971,500.0,0.00020844,2]
[342050569,1731394480443,150.01,0.00020844,2]
[342050571,1731394483980,165.71912296,0.00020844,2]
[342050572,1731394488717,500.0,0.00020844,2]
[342050573,1731394488762,500.0,0.00020844,2]
[342050574,1731394488791,500.0,0.00020844,2]
[342050575,1731394488821,500.0,0.00020844,2]
[342050576,1731394488852,500.0,0.00020844,2]
[342050577,1731394488881,500.0,0.00020844,2]
[342050578,1731394488912,500.0,0.00020844,2]
[342050579,1731394488941,500.0,0.00020844,2]
[342050580,1731394490147,150.01,0.00020844,2]
[342050581,1731394500819,300.0,0.00020844,2]
[342050582,1731394506248,300.0,0.00020844,2]
[342050583,1731394510399,150.01,0.00020844,2]
[342050586,1731394520227,221.19102227,0.00020844,2]
[342050588,1731394528843,180.89,0.00020835,3]
[342050589,1731394561750,300.0,0.00020844,2]
[342050590,1731394563175,300.0,0.00020844,2]
[342050594,1731394606601,1098.9506276,0.000207,2]
[342050595,1731394618322,736.44347161,0.00020745,2]
[342050596,1731394620601,300.0,0.00020844,2]
[342050598,1731394623175,300.0,0.00020844,2]
[342050602,1731394680570,300.0,0.00020844,2]
[342050603,1731394682703,300.0,0.00020844,2]
[342050604,1731394720822,208.985,0.00020428,2]
[342050605,1731394740599,300.0,0.00020844,2]
[342050607,1731394742919,300.0,0.00020844,2]
[342050608,1731394757925,160.0,0.00020844,2]
[342050609,1731394763445,811.63043541,0.00020745,2]
[342050610,1731394800597,300.0,0.00020844,2]
[342050611,1731394802811,300.0,0.00020844,2]
[342050612,1731394817249,452.30147,0.00020764,2]
[342050635,1731394857164,178.4067064,0.00020535,2]
[342050636,1731394860611,254.0,0.00020844,2]
[342050637,1731394862781,300.0,0.00020844,2]
[342050642,1731394898787,644.38803765,0.00020745,2]
[342050645,1731394923145,300.0,0.00020844,2]
[342050646,1731394930823,820.51623456,0.00020745,2]
[342050647,1731394937676,478.837956,0.00020546,2]
[342050653,1731394983291,300.0,0.00020844,2]
[342050657,1731395042455,300.0,0.00020844,2]
[342050660,1731395069445,160.0,0.00020844,2]
[342050663,1731395103150,300.0,0.00020844,2]
[342050669,1731395153709,857.24667621,0.00020745,2]
[342050670,1731395174103,563.8395329,0.00020745,2]
[342050672,1731395266182,215.0,0.00020844,2]
[342050673,1731395267723,5000.0,0.00020844,2]
[342050676,1731395282885,300.0,0.00020844,2]
[342050677,1731395283849,2099.56311548,0.00020844,2]
[342050678,1731395292123,400.0,0.00020844,3]
[342050680,1731395308140,312.35701432,0.00020745,2]
[342050684,1731395320067,414.57597859,0.00020844,2]
[342050685,1731395342574,300.0,0.00020844,2]
[342050688,1731395349126,157.966,0.0001418,2]
[342050693,1731395371219,500.0,0.00020844,2]
[342050694,1731395371251,500.0,0.00020844,2]
[342050695,1731395371282,152.63797346,0.00020844,2]
[342050696,1731395371312,651.62590534,0.00020844,2]
[342050697,1731395371343,500.0,0.00020844,2]
[342050698,1731395371380,500.0,0.00020844,2]
[342050699,1731395371410,500.0,0.00020844,2]
[342050700,1731395371444,609.3692571,0.00020844,2]
[342050701,1731395371475,500.0,0.00020844,2]
[342050702,1731395371514,500.0,0.00020844,2]
[342050703,1731395371550,500.0,0.00020844,2]
[342050704,1731395371586,500.0,0.00020844,2]
[342050705,1731395371619,500.0,0.00020844,2]
[342050706,1731395371664,508.22345433,0.00020844,2]
[342050707,1731395371724,500.0,0.00020844,2]
[342050708,1731395371931,500.0,0.00020844,2]
[342050709,1731395372123,189.71,0.0002,2]
[342050710,1731395372857,5000.0,0.00020844,2]
[342050711,1731395373853,161.11020923,0.00020745,2]
[342050712,1731395381067,788.66,0.00020835,3]
[342050713,1731395381302,160.0,0.00020844,2]
[342050716,1731395388583,5000.0,0.00020844,2]
[342050729,1731395395780,261.68020876,0.00020844,2]
[342050730,1731395400715,300.0,0.00020844,2]
[342050731,1731395403218,300.0,0.00020844,2]
[342050732,1731395403799,2951.18295949,0.00020844,2]
[342050733,1731395420133,267.67017077,0.00020745,2]
[342050787,1731395432320,-215.313,0.00020844,2]
[342050789,1731395432330,-171.305,0.00020844,2]
[342050790,1731395432338,-17561.382,0.00020844,2]
[342050791,1731395432349,-1271.92958567,0.00020844,2]
[342050793,1731395432361,-412.60757393,0.00020844,2]
[342050795,1731395432372,-410.59100478,0.00020844,2]
[342050798,1731395432384,-343.48983562,0.00020844,2]
[342050800,1731395432394,-879.63020235,0.00020845,2]
[342050802,1731395432403,-137.16970929,0.00020845,2]
[342050830,1731395434015,158.061,0.0001463,2]
[342050870,1731395439254,-452.30146993,0.00020845,2]
[342050871,1731395439266,-848990.82317571,0.00020845,2]
[342050872,1731395439275,-1169.27083333,0.00020845,2]
[342050873,1731395439284,-160.0,0.00020845,2]
[342050874,1731395439293,-1051.69,0.000209,2]
[342050875,1731395439303,-152.0,0.00020996,2]
[342050876,1731395439312,-478.837956,0.00021231,2]
[342050877,1731395439321,-877.421608,0.0002128,2]
[342050878,1731395439330,-200.0,0.000215,7]
[342050879,1731395439339,-160.0,0.000215,3]
[342050880,1731395439349,-153.0,0.000216,2]
[342050881,1731395439358,-153.0,0.000216,2]
[342050882,1731395439367,-150.858,0.00021661,2]
[342050883,1731395439377,-530.561,0.00021661,2]
[342050884,1731395439386,-2390.0,0.00021661,2]
[342050885,1731395439396,-1123.0,0.00021661,2]
[342050886,1731395439406,-5338.0,0.00021678,2]
[342050887,1731395439416,-153.0,0.000217,2]
[342050888,1731395439429,-153.0,0.000217,2]
[342050889,1731395439438,-153.0,0.000217,2]
[342050890,1731395439448,-153.0,0.000217,2]
[342050891,1731395439460,-153.0,0.000217,2]
[342050892,1731395439470,-153.0,0.000217,2]
[342050893,1731395439480,-153.0,0.000217,2]
[342050894,1731395439489,-153.0,0.000217,2]
[342050895,1731395439498,-153.0,0.000217,2]
[342050896,1731395439509,-153.0,0.000217,2]
[342050897,1731395439519,-153.0,0.000217,2]
[342050898,1731395439528,-153.0,0.000217,2]
[342050899,1731395439539,-153.0,0.000218,2]
[342050900,1731395439548,-153.0,0.000218,2]
[342050901,1731395439556,-153.0,0.000218,2]
[342050902,1731395439566,-153.0,0.000218,2]
[342050903,1731395439575,-615.0,0.000218,2]
[342050904,1731395439585,-6000.0,0.00021817,2]
[342050905,1731395439594,-857.24667617,0.00021854,2]
[342050906,1731395439603,-39826.01489193,0.00021864,2]
[342050907,1731395439612,-160.0,0.000219,4]
[342050908,1731395439622,-3000.0,0.000219,2]
[342050909,1731395439631,-614.9295,0.000219,2]
[342050910,1731395439641,-529385.1,0.0002191,2]
[342050911,1731395439650,-3000.0,0.0002191,2]
[342050912,1731395439659,-478.837956,0.00021915,2]
[342050913,1731395439668,-500.0,0.00021917,2]
[342050914,1731395439679,-500.0,0.00021917,2]
[342050915,1731395439688,-500.0,0.00021917,2]
[342050916,1731395439698,-151.0,0.00021917,2]
[342050917,1731395439708,-500.0,0.00021917,2]
[342050918,1731395439717,-500.0,0.00021917,2]
[342050919,1731395439726,-500.0,0.00021917,2]
[342050920,1731395439735,-504.5655071,0.00021917,2]
[342050921,1731395439744,-536.73694751,0.00021917,2]
[342050922,1731395439753,-515.89662781,0.00021917,2]
[342050924,1731395439763,-511.7209669,0.00021917,2]
[342050925,1731395439772,-501.96022432,0.00021917,2]
[342050926,1731395439781,-500.0,0.00021917,2]
[342050927,1731395439791,-500.0,0.00021917,2]
[342050928,1731395439800,-511.17065608,0.00021917,2]
[342050929,1731395439810,-500.0,0.00021917,2]
[342050930,1731395439819,-500.0,0.00021917,2]
[342050931,1731395439828,-500.0,0.00021917,2]
[342050932,1731395439839,-500.0,0.00021917,2]
[342050933,1731395439849,-500.0,0.00021917,2]
[342050934,1731395439858,-525.10217078,0.00021917,2]
[342050935,1731395439867,-504.67424249,0.00021917,2]
[342050936,1731395439877,-500.0,0.00021917,2]
[342050937,1731395439886,-500.0,0.00021917,2]
[342050938,1731395439895,-500.0,0.00021917,2]
[342050939,1731395439906,-500.0,0.00021917,2]
[342050940,1731395439916,-501.18864326,0.00021917,2]
[342050941,1731395439927,-500.0,0.00021917,2]
[342050942,1731395439936,-383.48744995,0.00021917,2]
[342050943,1731395439946,-615.70680579,0.00021917,2]
[342050944,1731395439955,-208.91411871,0.00021917,2]
[342050945,1731395439964,-500.0,0.00021917,2]
[342050946,1731395439974,-500.0,0.00021917,2]
[342050947,1731395439983,-500.0,0.00021917,2]
[342050948,1731395439993,-151.0,0.00021917,2]
[342050949,1731395440002,-500.0,0.00021917,2]
[342050950,1731395440012,-163.15862865,0.00021917,2]
[342050951,1731395440021,-500.0,0.00021917,2]
[342050952,1731395440031,-502.47913188,0.00021917,2]
[342050954,1731395440040,-500.0,0.00021917,2]
[342050956,1731395440050,-500.0,0.00021917,2]
[342050957,1731395440059,-500.0,0.00021917,2]
[342050959,1731395440070,-500.0,0.00021917,2]
[342050961,1731395440080,-151.31023586,0.00021917,2]
[342050963,1731395440090,-378.81593139,0.00021917,2]
[342050965,1731395440100,-500.0,0.00021917,2]
[342050966,1731395440110,-500.0,0.00021917,2]
[342050967,1731395440119,-851.97872525,0.00021917,2]
[342050968,1731395440129,-500.0,0.00021917,2]
[342050969,1731395440138,-500.0,0.00021917,2]
[342050971,1731395440148,-279.89183106,0.00021917,2]
[342050973,1731395440157,-500.0,0.00021917,2]
[342050975,1731395440166,-500.0,0.00021917,2]
[342050976,1731395440178,-544.45,0.00021917,2]
[342050977,1731395440188,-151.0,0.00021917,2]
[342050978,1731395440197,-151.0,0.00021917,2]
[342050979,1731395440206,-151.0,0.00021917,2]
[342050980,1731395440215,-151.0,0.00021917,2]
[342050981,1731395440224,-151.0,0.00021917,2]
[342050982,1731395440234,-151.0,0.00021917,2]
[342050983,1731395440243,-641.64401351,0.00021917,2]
[342050984,1731395440252,-500.0,0.00021917,2]
[342050985,1731395440261,-151.0,0.00021917,2]
[342050986,1731395440270,-151.0,0.00021917,2]
[342050987,1731395440279,-151.0,0.00021917,2]
[342050988,1731395440288,-500.0,0.00021917,2]
[342050989,1731395440297,-151.0,0.00021917,2]
[342050990,1731395440306,-151.0,0.00021917,2]
[342050991,1731395440315,-151.0,0.00021917,2]
[342050992,1731395440324,-519.48923598,0.00021917,2]
[342050993,1731395440333,-500.0,0.00021917,2]
[342050994,1731395440342,-500.0,0.00021917,2]
[342050995,1731395440351,-500.0,0.00021917,2]
[342050996,1731395440360,-500.0,0.00021917,2]
[342050997,1731395440369,-500.0,0.00021917,2]
[342050998,1731395440378,-500.0,0.00021917,2]
[342050999,1731395440388,-500.0,0.00021917,2]
[342051000,1731395440397,-500.83473165,0.00021917,2]
[342051001,1731395440407,-500.0,0.00021917,2]
[342051002,1731395440563,-500.0,0.00021917,2]
[342051003,1731395440573,-500.0,0.00021917,2]
[342051004,1731395440582,-537.86925775,0.00021917,2]
[342051005,1731395440591,-538.83429899,0.00021917,2]
[342051006,1731395440600,-151.0,0.00021917,2]
[342051007,1731395440610,-175.054812,0.00021917,2]
[342051008,1731395440620,-515.04,0.00021917,2]
[342051009,1731395440629,-500.0,0.00021917,2]
[342051010,1731395440639,-500.0,0.00021917,2]
[342051011,1731395440648,-500.0,0.00021917,2]
[342051012,1731395440658,-500.0,0.00021917,2]
[342051013,1731395440667,-500.0,0.00021917,2]
[342051014,1731395440678,-331.69570707,0.00021917,2]
[342051015,1731395440687,-500.0,0.00021917,2]
[342051016,1731395440696,-500.0,0.00021917,2]
[342051017,1731395440706,-500.0,0.00021917,2]
[342051018,1731395440715,-500.0,0.00021917,2]
[342051019,1731395440724,-515.47156793,0.00021917,2]
[342051020,1731395440734,-151.0,0.00021917,2]
[342051021,1731395440744,-500.0,0.00021917,2]
[342051022,1731395440753,-151.0,0.00021917,2]
[342051023,1731395440763,-151.0,0.00021917,2]
[342051024,1731395440772,-151.0,0.00021917,2]
[342051025,1731395440781,-201.778324,0.00021917,2]
[342051026,1731395440791,-554.84,0.00021917,2]
[342051027,1731395440800,-468.35750796,0.00021917,2]
[342051028,1731395440809,-500.0,0.00021917,2]
[342051029,1731395440819,-500.0,0.00021917,2]
[342051030,1731395440829,-500.0,0.00021917,2]
[342051031,1731395440838,-500.0,0.00021917,2]
[342051032,1731395440847,-500.0,0.00021917,2]
[342051033,1731395440856,-500.0,0.00021917,2]
[342051034,1731395440866,-500.0,0.00021917,2]
[342051035,1731395440875,-586.18681719,0.00021917,2]
[342051036,1731395440884,-500.0,0.00021917,2]
[342051037,1731395440894,-500.0,0.00021917,2]
[342051038,1731395440903,-500.0,0.00021917,2]
[342051039,1731395440913,-503.07934457,0.00021917,2]
[342051040,1731395440923,-501.54746863,0.00021917,2]
[342051041,1731395440935,-500.0,0.00021917,2]
[342051042,1731395440945,-579.58734664,0.00021917,2]
[342051043,1731395440954,-500.0,0.00021917,2]
[342051044,1731395440964,-508.98404572,0.00021917,2]
[342051045,1731395440974,-200.0,0.00021917,2]
[342051046,1731395440984,-502.97165107,0.00021917,2]
[342051047,1731395440994,-500.0,0.00021917,2]
[342051048,1731395441003,-500.0,0.00021917,2]
[342051049,1731395441012,-500.0,0.00021917,2]
[342051050,1731395441022,-494.79543909,0.00021917,2]
[342051051,1731395441032,-500.0,0.00021917,2]
[342051052,1731395441041,-500.0,0.00021917,2]
[342051053,1731395441051,-500.0,0.00021917,2]
[342051054,1731395441060,-500.0,0.00021917,2]
[342051055,1731395441070,-1157.98,0.00021917,2]
[342051056,1731395441079,-194.42145591,0.00021917,2]
[342051057,1731395441088,-500.0,0.00021917,2]
[342051058,1731395441097,-521.89410803,0.00021917,2]
[342051059,1731395441107,-500.0,0.00021917,2]
[342051060,1731395441116,-500.0,0.00021917,2]
[342051061,1731395441125,-500.0,0.00021917,2]
[342051062,1731395441135,-274.309488,0.00021917,2]
[342051063,1731395441145,-500.0,0.00021917,2]
[342051064,1731395441155,-861.1,0.00021917,2]
[342051065,1731395441163,-500.0,0.00021917,2]
[342051066,1731395441172,-528.28,0.00021917,2]
[342051067,1731395441183,-500.0,0.00021917,2]
[342051068,1731395441192,-500.0,0.00021917,2]
[342051069,1731395441201,-450.0,0.00021917,2]
[342051070,1731395441210,-500.0,0.00021917,2]
[342051071,1731395441219,-500.0,0.00021917,2]
[342051072,1731395441228,-500.0,0.00021917,2]
[342051073,1731395441237,-232.43662554,0.00021917,2]
[342051074,1731395441246,-500.0,0.00021917,2]
[342051075,1731395441255,-500.0,0.00021917,2]
[342051076,1731395441264,-500.0,0.00021917,2]
[342051077,1731395441272,-168.75788187,0.00021917,2]
[342051078,1731395441281,-500.0,0.00021917,2]
[342051079,1731395441290,-537.56981005,0.00021917,2]
[342051080,1731395441299,-500.0,0.00021917,2]
[342051081,1731395441308,-511.27885708,0.00021917,2]
[342051082,1731395441317,-376.15411555,0.00021917,2]
[342051083,1731395441327,-500.0,0.00021917,2]
[342051084,1731395441335,-500.0,0.00021917,2]
[342051085,1731395441344,-572.48985408,0.00021917,2]
[342051086,1731395441354,-500.0,0.00021917,2]
[342051087,1731395441363,-500.0,0.00021917,2]
[342051088,1731395441372,-500.0,0.00021917,2]
[342051089,1731395441381,-513.43542315,0.00021917,2]
[342051090,1731395441391,-219.82400758,0.00021917,2]
[342051091,1731395441401,-511.12058777,0.00021917,2]
[342051092,1731395441410,-602.95126911,0.00021917,2]
[342051093,1731395441420,-500.0,0.00021917,2]
[342051094,1731395441432,-500.0,0.00021917,2]
[342051095,1731395441442,-500.0,0.00021917,2]
[342051096,1731395441452,-500.0,0.00021917,2]
[342051097,1731395441465,-500.0,0.00021917,2]
[342051098,1731395441475,-500.0,0.00021917,2]
[342051099,1731395441484,-502.72105777,0.00021917,2]
[342051100,1731395441494,-500.0,0.00021917,2]
[342051101,1731395441504,-500.0,0.00021917,2]
[342051102,1731395441513,-500.0,0.00021917,2]
[342051103,1731395441522,-526.54183215,0.00021917,2]
[342051104,1731395441532,-500.0,0.00021917,2]
[342051105,1731395441543,-500.0,0.00021917,2]
[342051106,1731395441552,-500.0,0.00021917,2]
[342051107,1731395441562,-500.0,0.00021917,2]
[342051108,1731395441571,-501.67279884,0.00021917,2]
[342051109,1731395441580,-500.0,0.00021917,2]
[342051110,1731395441589,-500.0,0.00021917,2]
[342051111,1731395441598,-500.0,0.00021917,2]
[342051112,1731395441608,-500.0,0.00021917,2]
[342051113,1731395441617,-500.0,0.00021917,2]
[342051114,1731395441626,-458.4298966,0.00021917,2]
[342051115,1731395441636,-500.0,0.00021917,2]
[342051116,1731395441645,-500.0,0.00021917,2]
[342051117,1731395441653,-500.0,0.00021917,2]
[342051118,1731395441663,-500.0,0.00021917,2]
[342051119,1731395441672,-500.0,0.00021917,2]
[342051120,1731395441685,-507.83224838,0.00021917,2]
[342051121,1731395441694,-500.0,0.00021917,2]
[342051122,1731395441703,-500.0,0.00021917,2]
[342051123,1731395441713,-509.07603731,0.00021917,2]
[342051124,1731395441722,-500.0,0.00021917,2]
[342051125,1731395441731,-500.0,0.00021917,2]
[342051126,1731395441741,-500.0,0.00021917,2]
[342051127,1731395441750,-500.0,0.00021917,2]
[342051128,1731395441760,-500.0,0.00021917,2]
[342051129,1731395441769,-500.0,0.00021917,2]
[342051130,1731395441779,-500.0,0.00021917,2]
[342051131,1731395441788,-449.34581962,0.00021917,2]
[342051132,1731395441798,-500.0,0.00021917,2]
[342051133,1731395441808,-525.84525482,0.00021917,2]
[342051134,1731395441818,-500.0,0.00021917,2]
[342051135,1731395441828,-528.33711216,0.00021917,2]
[342051136,1731395441837,-505.66860195,0.00021917,2]
[342051137,1731395441846,-500.0,0.00021917,2]
[342051138,1731395441855,-500.0,0.00021917,2]
[342051139,1731395441864,-529.4,0.00021917,2]
[342051140,1731395441873,-500.0,0.00021917,2]
[342051141,1731395441883,-500.0,0.00021917,2]
[342051142,1731395441892,-500.0,0.00021917,2]
[342051143,1731395441901,-335.60267093,0.00021917,2]
[342051144,1731395441911,-500.0,0.00021917,2]
[342051145,1731395441920,-500.0,0.00021917,2]
[342051146,1731395441931,-513.16616186,0.00021917,2]
[342051147,1731395441941,-687.54,0.00021917,2]
[342051148,1731395441950,-438.73684864,0.00021917,2]
[342051150,1731395441960,-500.0,0.00021917,2]
[342051151,1731395441969,-500.0,0.00021917,2]
[342051152,1731395441978,-522.32367393,0.00021917,2]
[342051153,1731395441988,-464.76162965,0.00021917,2]
[342051154,1731395441997,-500.0,0.00021917,2]
[342051155,1731395442006,-500.0,0.00021917,2]
[342051156,1731395442015,-500.0,0.00021917,2]
[342051157,1731395442024,-500.0,0.00021917,2]
[342051158,1731395442033,-500.0,0.00021917,2]
[342051159,1731395442042,-524.46231481,0.00021917,2]
[342051160,1731395442051,-500.0,0.00021917,2]
[342051161,1731395442060,-500.0,0.00021917,2]
[342051162,1731395442069,-687.26,0.00021917,2]
[342051163,1731395442079,-500.0,0.00021917,2]
[342051164,1731395442088,-500.0,0.00021917,2]
[342051165,1731395442097,-2336.0,0.00021917,2]
[342051166,1731395442106,-500.0,0.00021917,2]
[342051167,1731395442115,-500.0,0.00021917,2]
[342051168,1731395442124,-500.0,0.00021917,2]
[342051169,1731395442133,-500.0,0.00021917,2]
[342051170,1731395442142,-151.0,0.00021917,2]
[342051171,1731395442151,-500.0,0.00021917,2]
[342051172,1731395442160,-233.126128,0.00021917,2]
[342051173,1731395442169,-500.0,0.00021917,2]
[342051174,1731395442180,-500.0,0.00021917,2]
[342051175,1731395442190,-500.0,0.00021917,2]
[342051176,1731395442199,-500.0,0.00021917,2]
[342051177,1731395442207,-500.0,0.00021917,2]
[342051178,1731395442216,-450.44112456,0.00021917,2]
[342051179,1731395442225,-500.0,0.00021917,2]
[342051180,1731395442234,-500.0,0.00021917,2]
[342051181,1731395442243,-500.0,0.00021917,2]
[342051182,1731395442252,-2310.28,0.00021917,2]
[342051183,1731395442261,-500.0,0.00021917,2]
[342051184,1731395442270,-151.0,0.00021917,2]
[342051185,1731395442278,-500.0,0.00021917,2]
[342051186,1731395442287,-151.0,0.00021917,2]
[342051187,1731395442296,-500.0,0.00021917,2]
[342051188,1731395442307,-151.0,0.00021917,2]
[342051189,1731395442315,-151.0,0.00021917,2]
[342051190,1731395442324,-151.0,0.00021917,2]
[342051191,1731395442333,-151.0,0.00021917,2]
[342051192,1731395442342,-151.0,0.00021917,2]
[342051193,1731395442352,-242.062306,0.00021917,2]
[342051194,1731395442361,-500.0,0.00021917,2]
[342051195,1731395442370,-500.0,0.00021917,2]
[342051196,1731395442379,-500.0,0.00021917,2]
[342051197,1731395442388,-500.0,0.00021917,2]
[342051198,1731395442397,-500.0,0.00021917,2]
[342051199,1731395442406,-151.0,0.00021917,2]
[342051200,1731395442415,-151.0,0.00021917,2]
[342051201,1731395442424,-500.0,0.00021917,2]
[342051202,1731395442434,-151.0,0.00021917,2]
[342051203,1731395442442,-500.0,0.00021917,2]
[342051204,1731395442452,-517.16889602,0.00021917,2]
[342051205,1731395442464,-500.0,0.00021917,2]
[342051206,1731395442473,-500.0,0.00021917,2]
[342051207,1731395442482,-500.0,0.00021917,2]
[342051208,1731395442491,-524.40677164,0.00021917,2]
[342051209,1731395442501,-500.0,0.00021917,2]
[342051210,1731395442510,-500.0,0.00021917,2]
[342051211,1731395442521,-500.0,0.00021917,2]
[342051212,1731395442531,-500.0,0.00021917,2]
[342051213,1731395442540,-500.0,0.00021917,2]
[342051214,1731395442549,-500.0,0.00021917,2]
[342051215,1731395442558,-500.0,0.00021917,2]
[342051216,1731395442567,-500.0,0.00021917,2]
[342051217,1731395442576,-500.0,0.00021917,2]
[342051218,1731395442585,-500.0,0.00021917,2]
[342051219,1731395442594,-500.0,0.00021917,2]
[342051220,1731395442603,-500.0,0.00021917,2]
[342051221,1731395442613,-500.0,0.00021917,2]
[342051222,1731395442623,-500.0,0.00021917,2]
[342051223,1731395442632,-500.0,0.00021917,2]
[342051224,1731395442642,-500.0,0.00021917,2]
[342051225,1731395442651,-500.0,0.00021917,2]
[342051226,1731395442660,-500.0,0.00021917,2]
[342051227,1731395442669,-500.0,0.00021917,2]
[342051228,1731395442680,-500.0,0.00021917,2]
[342051229,1731395442692,-500.0,0.00021917,2]
[342051230,1731395442701,-500.0,0.00021917,2]
[342051232,1731395442709,-500.0,0.00021917,2]
[342051234,1731395442719,-500.0,0.00021917,2]
[342051235,1731395442728,-2204.59,0.00021917,2]
[342051236,1731395442737,-500.0,0.00021917,2]
[342051237,1731395442746,-501.3368887,0.00021917,2]
[342051238,1731395442755,-512.04136664,0.00021917,2]
[342051239,1731395442764,-151.0,0.00021917,2]
[342051240,1731395442773,-509.39301151,0.00021917,2]
[342051241,1731395442782,-500.0,0.00021917,2]
[342051242,1731395442791,-151.0,0.00021917,2]
[342051244,1731395442801,-248.301207,0.00021917,2]
[342051245,1731395442810,-500.0,0.00021917,2]
[342051246,1731395442819,-500.0,0.00021917,2]
[342051248,1731395442828,-151.0,0.00021917,2]
[342051249,1731395442838,-151.0,0.00021917,2]
[342051250,1731395442847,-512.9196487,0.00021917,2]
[342051252,1731395442857,-151.0,0.00021917,2]
[342051253,1731395442866,-196.38879442,0.00021917,2]
[342051254,1731395442876,-151.0,0.00021917,2]
[342051255,1731395442885,-151.0,0.00021917,2]
[342051256,1731395442895,-156.067862,0.00021917,2]
[342051257,1731395442904,-150.03,0.00021917,2]
[342051258,1731395442913,-185.69447349,0.00021917,2]
[342051259,1731395442923,-515.08155479,0.00021917,2]
[342051260,1731395442934,-500.0,0.00021917,2]
[342051261,1731395442943,-500.0,0.00021917,2]
[342051262,1731395442953,-657.25,0.00021917,2]
[342051263,1731395442963,-151.0,0.00021917,2]
[342051264,1731395442973,-500.0,0.00021917,2]
[342051265,1731395442983,-500.0,0.00021917,2]
[342051266,1731395442992,-306.67789067,0.00021917,2]
[342051267,1731395443001,-500.0,0.00021917,2]
[342051268,1731395443010,-500.0,0.00021917,2]
[342051269,1731395443020,-535.51903949,0.00021917,2]
[342051270,1731395443029,-6271.46,0.00021917,2]
[342051271,1731395443038,-500.0,0.00021917,2]
[342051272,1731395443046,-883.62,0.00021917,2]
[342051273,1731395443055,-573.94,0.00021917,2]
[342051274,1731395443065,-925.17,0.00021917,2]
[342051275,1731395443074,-526.92159557,0.00021917,2]
[342051276,1731395443083,-259.44494162,0.00021917,2]
[342051277,1731395443092,-500.0,0.00021917,2]
[342051278,1731395443102,-500.0,0.00021917,2]
[342051279,1731395443111,-500.0,0.00021917,2]
[342051280,1731395443120,-500.0,0.00021917,2]
[342051281,1731395443130,-500.0,0.00021917,2]
[342051282,1731395443139,-1011.75,0.00021917,2]